bitfinex-derivatives/quotes_ETHF0:USTF0_20241230
["timestamp","ask_amount","ask_price","bid_price","bid_amount"]
[1735554162493,0.4277,3421.0,3420.9,0.74163]
[1735554163196,0.72052,3421.0,3420.9,0.4488]
[1735554163399,0.4277,3421.0,3420.9,0.4488]
[1735554164297,0.4277,3421.0,3420.9,0.74163]
[1735554166695,3.6626121,3421.5,3420.9,0.4488]
[1735554166899,3.2078,3421.5,3421.4,0.29279]
[1735554169399,3.2078,3421.5,3421.4,1.15979]
[1735554173600,0.29274,3422.0,3421.4,1.15979]
[1735554173601,0.29274,3422.0,3421.7,0.29276]
[1735554173904,3.2078,3421.8,3421.7,0.29276]
[1735554174905,3.2078,3421.8,3421.6,0.29276]
[1735554175107,3.2078,3421.8,3421.7,0.29276]
[1735554180213,3.2078,3421.8,3421.4,0.867]
[1735554180409,3.2078,3421.8,3421.7,0.29276]
[1735554181714,1.73914332,3422.2,3421.6,0.73191]
[1735554181913,1.73914332,3422.2,3422.1,0.29273]
[1735554182119,0.89426616,3422.2,3422.1,0.29273]
[1735554182317,0.45536616,3422.4,3422.3,0.29271]
[1735554182515,6.94238694,3422.5,3422.4,0.2927]
[1735554182717,3.50049,3422.5,3422.4,0.2927]
[1735554183511,0.2927,3422.4,3422.3,0.2927]
[1735554184518,3.2078,3422.5,3422.4,0.2927]
[1735554185215,3.2078,3422.5,3422.4,0.7198]
[1735554191120,3.2078,3422.5,3422.2,1.162]
[1735554191424,0.4478,3422.4,3422.3,0.2927]
[1735554194513,0.4478,3422.4,3422.2,1.45471]
[1735554194722,0.4133,3422.3,3422.2,1.45471]
[1735554195422,3.2078,3422.5,3422.4,0.2927]
[1735554197033,0.8615,3422.8,3422.4,0.2927]
[1735554197221,0.8615,3422.8,3422.7,0.29267]
[1735554199024,0.29267,3422.7,3422.5,0.70809]
[1735554199225,0.8615,3422.8,3422.3,3.2078]
[1735554199429,0.29268,3422.7,3422.5,0.29269]
[1735554200023,0.8615,3422.8,3422.3,3.2078]
[1735554200227,1.15417,3422.8,3422.6,0.29268]
[1735554200424,0.8615,3422.8,3422.7,0.29267]
[1735554202128,1.15417,3422.8,3422.7,0.29267]
[1735554202425,1.15417,3422.8,3422.6,0.29268]
[1735554203226,0.8615,3422.8,3422.6,0.29268]
[1735554203423,1.15417,3422.8,3422.6,0.29268]
[1735554204120,0.8615,3422.8,3422.3,3.2078]
[1735554204520,0.8615,3422.8,3422.7,0.29267]
[1735554205930,0.8615,3422.8,3422.3,3.2078]
[1735554206226,0.29268,3422.7,3422.3,3.2078]
[1735554206428,0.29268,3422.7,3422.6,0.29268]
[1735554206626,0.8615,3422.8,3422.3,3.2078]
[1735554206823,1.15417,3422.8,3422.7,0.29267]
[1735554210836,0.8615,3422.8,3422.7,0.29267]
[1735554211226,1.15417,3422.8,3422.7,0.29267]
[1735554211833,0.29268,3422.7,3422.6,0.29268]
[1735554212036,3.50048,3422.7,3422.6,0.29268]
[1735554213233,5.7927174,3422.7,3422.6,0.29268]
[1735554215240,2.5849074,3422.7,3422.6,0.29268]
[1735554215538,2.2922374,3422.7,3422.6,0.29268]
[1735554216130,3.44189694,3422.7,3422.3,3.2078]
[1735554216331,3.73456694,3422.7,3422.6,0.29268]
[1735554216539,3.44189694,3422.7,3422.6,0.29268]
[1735554217230,3.44189694,3422.7,3422.3,3.2078]
[1735554217231,4.30339694,3422.8,3422.7,0.29267]
[1735554219143,3.44189694,3422.8,3422.7,0.29267]
[1735554224058,0.43912365,3422.8,3422.7,0.29267]
[1735554225658,2.29911859,3422.8,3422.7,0.29267]
[1735554227154,2.29911859,3422.9,3422.8,0.29267]
[1735554228561,2.29911859,3422.9,3422.8,2.6228592]
[1735554229956,2.29911859,3422.9,3422.8,6.73441014]
[1735554231166,0.29266,3422.9,3422.8,12.14299593]
[1735554232263,3.88774634,3422.9,3422.8,1.45367]
[1735554233355,3.74133789,3422.9,3422.8,1.45367]
[1735554234767,3.44867789,3422.9,3422.8,1.45367]
[1735554235267,4.18044847,3422.9,3422.8,1.45367]
[1735554235467,3.88778847,3422.9,3422.8,1.45367]
[1735554235672,4.18044847,3422.9,3422.8,1.161]
[1735554235863,3.88778847,3422.9,3422.8,1.161]
[1735554236169,3.88778847,3422.9,3422.8,1.45367]
[1735554236668,4.18044847,3422.9,3422.8,1.45367]
[1735554237273,3.88778847,3422.9,3422.8,1.45367]
[1735554239862,3.88778847,3422.9,3422.8,1.161]
[1735554240068,3.88778847,3422.9,3422.8,1.45367]
[1735554240265,3.88778847,3422.9,3422.8,1.161]
[1735554240663,3.88778847,3422.9,3422.8,1.45367]
[1735554240871,4.18044847,3422.9,3422.8,1.45367]
[1735554241071,3.88778847,3422.9,3422.8,1.45367]
[1735554243575,0.43911058,3422.9,3422.8,1.45367]
[1735554244576,6.22405323,3423.0,3422.8,0.29267]
[1735554245576,0.43911058,3422.9,3422.8,0.29267]
[1735554246178,0.85061058,3422.9,3422.8,0.29267]
[1735554246771,0.85061058,3422.9,3422.5,6.87044499]
[1735554246970,0.85061058,3422.9,3422.5,7.16313499]
[1735554247172,0.29268,3422.7,3422.5,7.16313499]
[1735554247874,0.85061058,3422.9,3422.5,6.87044499]
[1735554248171,0.29268,3422.7,3422.5,6.87044499]
[1735554248383,3.88865586,3422.6,3422.5,0.29269]
[1735554248772,4.18134586,3422.6,3422.4,0.29269]
[1735554248969,0.4334,3422.5,3422.4,0.2927]
[1735554249476,4.32205586,3422.5,3422.4,0.2927]
[1735554250783,4.61475586,3422.5,3422.4,0.2927]
[1735554250973,4.32205586,3422.5,3422.4,0.2927]
[1735554252380,3.88294528,3422.5,3422.4,0.2927]
[1735554254281,4.17563528,3422.5,3422.4,0.2927]
[1735554254478,3.88294528,3422.5,3422.4,0.2927]
[1735554255376,3.88294528,3422.5,3422.3,7.81086748]
[1735554255577,0.4399,3422.4,3422.3,8.10356748]
[1735554256183,2.73940463,3422.4,3422.3,8.10356748]
[1735554256483,3.46860463,3422.4,3422.3,7.81086748]
[1735554257185,3.46860463,3422.4,3422.3,8.10357748]
[1735554257883,1.1691,3422.4,3422.3,3.50051]
[1735554259179,4.61864528,3422.4,3422.3,3.50051]
[1735554259384,4.32594528,3422.4,3422.3,3.50051]
[1735554259587,3.88944528,3422.4,3422.3,3.50051]
[1735554260381,2.73861323,3422.4,3422.3,3.50051]
[1735554262182,2.29871323,3422.4,3422.3,3.50051]
[1735554263184,2.29871323,3422.4,3422.3,8.10357748]
[1735554263380,2.29871323,3422.4,3422.3,4.89577748]
[1735554264687,2.29871323,3422.4,3422.3,0.29271]
[1735554267288,2.29871323,3422.4,3422.3,1.31918339]
[1735554267989,2.29871323,3422.4,3422.3,0.29271]
[1735554269695,2.29871323,3422.4,3422.3,1.31918339]
[1735554271097,2.29871323,3422.4,3422.3,0.29271]
[1735554272593,2.29871323,3422.4,3422.3,1.31918339]
[1735554272790,2.29871323,3422.4,3422.3,4.52698339]
[1735554272991,2.29871323,3422.4,3422.3,4.96418339]
[1735554274093,2.29871323,3422.7,3422.6,0.29268]
[1735554274687,2.29871323,3422.7,3422.6,1.15948]
[1735554275496,1.61311323,3422.7,3422.6,1.15948]
[1735554275890,1.61311323,3422.7,3422.6,2.44008899]
[1735554276387,3.2078,3423.1,3422.6,15.48301395]
[1735554276587,3.2078,3423.1,3423.0,1.31912339]
[1735554276796,3.2078,3423.1,3423.0,2.48012339]
[1735554278290,3.2078,3423.1,3423.0,1.45365]
[1735554278692,3.2078,3423.1,3423.0,1.90405]
[1735554279193,3.2078,3423.1,3423.0,6.50554767]
[1735554279796,3.2078,3423.1,3423.0,6.05514767]
[1735554280198,3.6268,3423.1,3423.0,6.05514767]
[1735554280702,3.6268,3423.1,3423.0,1.45365]
[1735554284401,3.2078,3423.1,3423.0,1.45365]
[1735554288905,3.86334528,3423.4,3423.0,1.45365]
[1735554289096,3.86334528,3423.4,3423.3,0.29262]
[1735554291005,0.4138,3423.4,3423.3,0.29262]
[1735554294508,0.70642,3423.4,3423.3,1.161]
[1735554295702,0.4138,3423.4,3423.0,4.60149767]
[1735554295906,0.29264,3423.1,3423.0,4.60149767]
[1735554296713,2.74787469,3423.4,3422.8,5.76249767]
[1735554297009,1.18825,3423.0,3422.8,6.05515767]
[1735554297207,0.4318,3422.9,3422.8,6.05515767]
[1735554298013,0.4318,3422.9,3422.8,0.29266]
[1735554298313,0.4318,3422.9,3422.7,4.3688]
[1735554298610,0.4318,3422.9,3422.8,0.29267]
[1735554301514,0.4318,3422.9,3422.7,3.2078]
[1735554301714,0.29267,3422.8,3422.7,3.2078]
[1735554302113,0.29267,3422.8,3422.6,0.29268]
[1735554302517,0.4318,3422.9,3422.5,1.161]
[1735554302714,0.29268,3422.7,3422.5,1.45369]
[1735554302916,0.29268,3422.6,3422.5,1.161]
[1735554303116,0.72258,3422.6,3422.5,1.161]
[1735554303420,0.4299,3422.6,3422.4,4.60149767]
[1735554303622,0.4147,3422.5,3422.4,4.60149767]
[1735554303918,0.4299,3422.6,3422.5,0.29269]
[1735554305415,0.4318,3422.9,3422.5,2.33407469]
[1735554305621,0.4299,3422.8,3422.7,0.29267]
[1735554306813,0.4299,3422.8,3422.7,4.89416767]
[1735554307218,0.4318,3422.9,3422.8,0.29267]
[1735554307523,0.4318,3422.9,3422.8,2.62674469]
[1735554308009,0.4126,3423.2,3423.1,0.29264]
[1735554310218,0.4126,3423.2,3423.1,3.50044]
[1735554311218,0.4126,3423.2,3423.1,0.29264]
[1735554319018,0.4126,3423.2,3423.0,4.59613339]
[1735554319223,0.29264,3423.1,3423.0,4.59613339]
[1735554320028,3.50044,3423.1,3423.0,4.59613339]
[1735554320227,5.83451469,3423.1,3423.0,4.59613339]
[1735554321358,0.29267,3422.8,3422.7,0.29267]
[1735554321846,0.29268,3422.7,3422.5,4.88881339]
[1735554322046,0.431,3422.7,3422.6,0.29268]
[1735554323827,3.87958868,3422.7,3422.6,0.29268]
[1735554325256,3.44858868,3422.7,3422.6,0.29268]
[1735554325551,3.44858868,3422.8,3422.6,0.29268]
[1735554326355,3.44858868,3422.8,3422.4,5.03273339]
[1735554326655,3.74125868,3422.8,3422.6,0.29268]
[1735554326852,0.29267,3422.8,3422.6,4.88881339]
[1735554328038,0.29268,3422.6,3422.5,4.59613339]
[1735554328849,0.29268,3422.7,3422.5,4.88882339]
[1735554329242,4.31118868,3422.9,3422.5,4.59613339]
[1735554329441,3.44858868,3422.7,3422.6,0.29268]
[1735554329639,3.74125868,3422.7,3422.6,0.29268]
[1735554330536,3.44858868,3422.7,3422.6,0.29268]
[1735554330730,0.29267,3422.7,3422.6,0.29268]
[1735554330930,4.31118868,3422.9,3422.6,0.29268]
[1735554331136,0.29267,3422.7,3422.6,0.29268]
[1735554332440,0.29267,3422.8,3422.6,0.29268]
[1735554332636,0.29267,3422.7,3422.6,0.29268]
[1735554333439,4.31118868,3422.9,3422.6,0.29268]
[1735554333638,0.29267,3422.8,3422.6,0.29268]
[1735554334340,0.29267,3422.8,3422.4,1.02636143]
[1735554334840,0.29267,3422.7,3422.6,0.29268]
[1735554335529,0.29268,3422.7,3422.6,0.29268]
[1735554336241,0.29267,3422.8,3422.5,0.29269]
[1735554336436,0.29267,3422.8,3422.6,0.29268]
[1735554336636,0.29267,3422.8,3422.7,0.29267]
[1735554337637,0.29268,3422.7,3422.6,0.29268]
[1735554339436,3.44858868,3422.8,3422.4,1.02636143]
[1735554339635,3.74125868,3422.8,3422.7,0.29267]
[1735554342235,4.1804051,3422.8,3422.7,0.29267]
[1735554344644,3.74125868,3422.8,3422.7,0.29267]
[1735554345544,0.29268,3422.7,3422.6,0.29268]
[1735554346639,0.29269,3422.6,3422.5,0.29269]
[1735554347341,4.47495011,3422.8,3422.3,4.59613339]
[1735554347541,0.2927,3422.5,3422.4,0.29269]
[1735554349246,0.2927,3422.5,3422.4,0.2927]
[1735554349646,0.29269,3422.6,3422.4,0.2927]
[1735554350738,0.2927,3422.5,3422.2,7.23009482]
[1735554350941,0.4446,3422.4,3422.3,0.29271]
[1735554351140,0.8987,3422.4,3422.3,0.29271]
[1735554355551,0.8987,3422.4,3422.2,7.23009482]
[1735554355552,3.44858868,3422.7,3422.2,7.23009482]
[1735554355748,3.44858868,3422.7,3422.6,0.29268]
[1735554356252,4.30688868,3422.8,3422.5,1.02636143]
[1735554356548,4.30688868,3422.8,3422.7,0.29267]
[1735554356751,3.44858868,3422.8,3422.7,4.52683143]
[1735554357146,3.44858868,3422.8,3422.7,5.80744877]
[1735554357546,3.44858868,3423.2,3422.7,14.36698886]
[1735554357852,3.44858868,3423.2,3423.1,1.31900143]
[1735554358155,3.44858868,3423.2,3423.1,1.45364]
[1735554359452,4.92085011,3423.3,3423.2,0.29263]
[1735554360550,1.91133569,3423.3,3423.2,0.29263]
[1735554362051,1.47226143,3423.3,3423.2,0.29263]
[1735554363059,6.50970741,3423.3,3423.2,0.29263]
[1735554363357,5.48334598,3423.3,3423.2,0.29263]
[1735554363855,8.69114598,3423.3,3423.2,0.29263]
[1735554364446,4.09277426,3423.3,3423.2,0.29263]
[1735554364652,4.38539426,3423.3,3423.2,0.29263]
[1735554365757,8.98376598,3423.3,3423.2,0.29263]
[1735554366562,9.71750741,3423.3,3423.1,1.161]
[1735554366763,0.29263,3423.2,3423.1,1.161]
[1735554366963,0.29264,3423.1,3423.0,0.29264]
[1735554368667,0.73171426,3423.1,3423.0,0.29264]
[1735554368860,0.43907426,3423.1,3423.0,0.29264]
[1735554369552,3.44901413,3423.1,3423.0,0.29264]
[1735554370863,3.88808839,3423.2,3423.1,0.29264]
[1735554375762,3.88808839,3423.2,3423.1,0.70634]
[1735554376366,3.6537,3423.3,3423.2,0.29263]
[1735554378060,0.4459,3423.3,3423.2,0.29263]
[1735554378467,0.73852,3423.3,3423.2,0.29263]
[1735554378768,0.4459,3423.3,3423.2,0.29263]
[1735554379263,1.47226143,3423.3,3423.2,0.29263]
[1735554380063,4.92127556,3423.3,3423.2,0.29263]
[1735554381164,5.36034964,3423.3,3423.2,0.29263]
[1735554382368,4.92127556,3423.3,3423.2,0.29263]
[1735554383264,5.21389556,3423.3,3423.2,0.29263]
[1735554384673,4.18753413,3423.3,3423.2,0.29263]
[1735554384873,3.89491413,3423.3,3423.2,0.29263]
[1735554385172,4.33398652,3423.3,3423.2,0.29263]
[1735554387569,4.33398652,3423.3,3423.2,1.31899143]
[1735554387774,3.88808652,3423.3,3423.2,1.31899143]
[1735554387976,3.44901413,3423.5,3423.4,0.29261]
[1735554388573,3.44901413,3423.5,3423.4,0.73061]
[1735554389474,3.8880451,3423.7,3423.6,0.2926]
[1735554390776,3.44901413,3423.7,3423.6,0.2926]
[1735554393074,0.43902778,3423.8,3423.7,0.29259]
[1735554393075,4.18062191,3423.8,3423.7,0.29259]
[1735554394475,3.88804191,3423.8,3423.5,1.16]
[1735554394670,0.29261,3423.4,3423.3,4.59997809]
[1735554395978,4.78111,3423.4,3423.3,4.59997809]
[1735554396178,0.29263,3423.2,3423.1,1.45263]
[1735554397274,6.7866198,3423.4,3423.1,1.45263]
[1735554397480,0.29263,3423.3,3423.1,1.45263]
[1735554397680,6.7866198,3423.4,3423.1,1.45263]
[1735554397982,2.2981198,3423.2,3423.1,1.45263]
[1735554399380,2.2981198,3423.2,3423.1,1.16]
[1735554399583,0.29263,3423.2,3423.1,1.16]
[1735554400083,0.29263,3423.2,3423.1,1.45264]
[1735554400382,3.74164413,3423.3,3423.1,1.45264]
[1735554400880,3.44901413,3423.2,3423.1,1.45264]
[1735554401782,3.74164413,3423.2,3423.1,1.45264]
[1735554401977,3.44901413,3423.2,3423.1,1.45264]
[1735554402581,3.88809813,3423.2,3423.1,1.45264]
[1735554402981,4.18072813,3423.2,3423.1,1.45264]
[1735554403285,3.88809813,3423.2,3423.1,1.45264]
[1735554403883,4.18072813,3423.2,3423.1,1.45264]
[1735554404087,3.88809813,3423.2,3423.1,1.45264]
[1735554410094,4.18072813,3423.2,3423.1,1.16]
[1735554410295,3.88809813,3423.2,3423.0,4.59997809]
[1735554410484,1.31900143,3423.1,3423.0,4.59997809]
[1735554410688,1.31900143,3423.1,3423.0,2.54377809]
[1735554410996,1.31900143,3423.1,3422.9,5.53144651]
[1735554410997,0.29265,3423.0,3422.9,5.53144651]
[1735554411295,3.50045,3423.0,3422.9,5.53144651]
[1735554411497,0.29268,3422.6,3422.5,9.16059332]
[1735554411701,4.52684143,3422.6,3422.5,9.16059332]
[1735554411994,9.52684143,3422.6,3422.5,9.16059332]
[1735554412195,10.83675991,3422.6,3422.5,9.16059332]
[1735554412796,5.83675991,3422.6,3422.5,9.16059332]
[1735554413395,0.29275,3421.8,3421.7,0.73935]
[1735554413593,0.29275,3421.8,3421.7,0.4466]
[1735554413990,0.29275,3421.8,3421.7,0.73936]
[1735554414191,3.2078,3422.0,3421.7,0.4466]
[1735554414391,3.88027472,3421.8,3421.6,0.4569]
[1735554414584,0.29276,3421.7,3421.6,0.4569]
[1735554416201,4.17303472,3421.7,3421.6,0.4569]
[1735554417697,0.29276,3421.7,3421.6,0.4569]
[1735554426105,0.29276,3421.7,3421.6,0.74967]
[1735554428715,3.50056,3421.8,3421.7,0.29276]
[1735554429405,3.2078,3421.8,3421.7,0.29276]
[1735554433009,3.2078,3421.8,3421.7,1.31968406]
[1735554436106,3.0187871,3422.5,3421.7,1.31968406]
[1735554436107,2.2870371,3422.5,3421.7,1.31968406]
[1735554436303,3.2078,3422.6,3422.5,0.29269]
[1735554436304,5.7875271,3422.6,3422.5,0.29269]
[1735554437312,0.2927,3422.5,3422.4,0.29269]
[1735554439410,0.2927,3422.5,3422.4,0.72799]
[1735554442118,3.2078,3422.6,3422.4,0.4353]
[1735554442321,3.50049,3422.6,3422.5,0.29269]
[1735554443119,3.2078,3422.6,3422.4,0.4353]
[1735554443419,0.29269,3422.5,3422.4,0.72799]
[1735554443918,0.29269,3422.5,3422.4,0.4353]
[1735554444626,0.29269,3422.5,3422.4,0.728]
[1735554446016,0.29269,3422.5,3422.4,0.4353]
[1735554452322,2.5797271,3422.5,3422.4,0.4353]
[1735554454825,0.29269,3422.5,3422.4,0.4353]
[1735554456020,7.67591478,3422.6,3422.3,0.8693]
[1735554456217,1.73122406,3422.4,3422.3,0.8693]
[1735554456425,0.29273,3422.0,3421.9,0.87]
[1735554456723,0.29273,3422.0,3421.9,1.3142]
[1735554456923,0.29273,3422.0,3421.9,1.60694]
[1735554457627,2.58533959,3422.0,3421.9,1.60694]
[1735554458922,0.29273,3422.0,3421.9,1.60694]
[1735554459720,2.29260959,3422.1,3421.9,1.3142]
[1735554459921,2.29260959,3422.1,3422.0,0.29273]
[1735554460415,2.29260959,3422.1,3422.0,1.31965406]
[1735554462334,1.60700959,3422.1,3422.0,1.31965406]
[1735554464726,3.73388072,3422.5,3422.0,1.02692406]
[1735554465030,3.44119072,3422.5,3422.4,1.31962406]
[1735554465324,0.50999072,3422.5,3422.4,1.31962406]
[1735554465525,4.58825429,3422.7,3422.6,0.29268]
[1735554465723,4.58825429,3422.7,3422.6,1.31960406]
[1735554465919,4.58825429,3422.8,3422.6,1.02692406]
[1735554466125,4.58825429,3422.8,3422.7,0.29267]
[1735554466930,3.90265429,3422.8,3422.7,0.29267]
[1735554467238,1.84685429,3422.8,3422.7,9.781052]
[1735554467634,6.87986344,3423.4,3423.3,0.29262]
[1735554467635,1.84685429,3423.4,3423.3,0.29262]
[1735554467832,1.84685429,3423.4,3423.3,1.02692406]
[1735554468137,1.84685429,3423.4,3423.2,1.16]
[1735554468338,0.8371,3423.3,3423.2,1.45263]
[1735554471030,0.4223,3423.3,3423.2,1.45263]
[1735554472535,3.6261,3423.6,3423.2,1.16]
[1735554472839,4.0636,3423.6,3423.5,0.29261]
[1735554473227,3.6453,3423.6,3423.5,0.29261]
[1735554473430,8.94311787,3424.2,3424.1,0.29255]
[1735554473627,5.73531787,3424.2,3424.1,0.29255]
[1735554473831,5.73531787,3424.2,3424.1,1.45255]
[1735554474030,5.73531787,3424.2,3424.1,2.29585]
[1735554474231,0.421,3424.5,3424.3,0.29253]
[1735554474232,6.15631787,3424.5,3424.3,0.29253]
[1735554474629,6.44883787,3424.5,3424.3,0.29253]
[1735554474831,0.4142,3424.4,3424.3,0.29253]
[1735554478437,0.70673,3424.4,3424.3,0.29253]
[1735554479742,0.4142,3424.4,3424.1,2.0033]
[1735554479942,0.4142,3424.4,3424.1,1.5889]
[1735554480144,0.70673,3424.4,3424.1,1.16]
[1735554480345,0.4142,3424.4,3423.7,2.78416153]
[1735554480644,0.29257,3424.0,3423.9,0.29257]
[1735554480842,0.4228,3424.3,3423.8,1.16]
[1735554481045,0.29256,3424.1,3424.0,0.29256]
[1735554483847,0.4228,3424.3,3423.8,1.16]
[1735554484048,0.4142,3424.4,3424.3,0.29254]
[1735554485348,0.70673,3424.4,3424.3,0.29254]
[1735554485949,0.4142,3424.4,3424.3,0.29254]
[1735554486849,0.70673,3424.4,3424.3,0.29254]
[1735554487944,0.29255,3424.2,3424.1,0.29255]
[1735554488144,0.29257,3424.0,3423.9,0.29257]
[1735554488549,0.4529,3424.1,3423.8,1.16]
[1735554488851,0.4529,3424.1,3423.5,3.2078]
[1735554489352,0.29257,3423.9,3423.5,3.6524]
[1735554489655,0.4391,3423.8,3423.7,0.29259]
[1735554490045,0.4391,3423.8,3423.7,2.62675153]
[1735554492441,0.29259,3423.7,3423.5,3.2078]
[1735554492641,0.4391,3423.8,3423.5,3.5004]
[1735554493140,0.29259,3423.7,3423.5,3.2078]
[1735554493345,0.4391,3423.8,3423.5,3.2078]
[1735554493540,0.73168,3423.8,3423.5,3.2078]
[1735554493754,0.73168,3423.8,3423.6,0.29259]
[1735554494151,0.29259,3423.7,3423.6,0.29259]
[1735554494351,0.2926,3423.6,3423.5,3.5004]
[1735554494551,0.29259,3423.7,3423.6,0.29259]
[1735554494852,0.73168,3423.8,3423.7,0.29259]
[1735554495045,0.4391,3423.8,3423.5,3.2078]
[1735554495246,3.2078,3424.6,3423.7,2.33416153]
[1735554495447,0.29257,3423.9,3423.7,0.29259]
[1735554495647,0.29258,3423.8,3423.7,0.29258]
[1735554495852,0.70808,3423.8,3423.7,0.29258]
[1735554496456,0.29257,3424.0,3423.9,0.29256]
[1735554498351,0.4155,3424.2,3423.7,0.29258]
[1735554498352,0.29259,3423.8,3423.7,0.29258]
[1735554498557,0.29258,3423.9,3423.8,0.29258]
[1735554499052,0.29257,3424.0,3423.9,0.29257]
[1735554499448,0.29255,3424.1,3423.8,0.29258]
[1735554499755,0.29258,3423.9,3423.8,0.29258]
[1735554500550,0.4181,3424.1,3423.6,0.4186]
[1735554500747,0.71066,3424.1,3424.0,0.29256]
[1735554500950,0.4181,3424.1,3424.0,0.29256]
[1735554501156,0.74492,3424.5,3424.4,0.29253]
[1735554501353,1.17852,3424.5,3424.4,0.29253]
[1735554503458,0.29254,3424.3,3424.2,0.29254]
[1735554505155,0.886,3424.5,3424.0,3.2078]
[1735554505353,0.29255,3424.1,3424.0,3.50036]
[1735554505558,1.61733,3424.5,3424.2,0.29254]
[1735554505559,0.29254,3424.3,3424.2,0.29254]
[1735554505759,0.29254,3424.3,3424.0,3.2078]
[1735554506058,0.29254,3424.3,3424.2,0.29255]
[1735554506451,0.29254,3424.3,3423.8,1.89144]
[1735554506452,0.29256,3424.2,3424.1,0.29255]
[1735554506652,3.2078,3424.2,3423.9,0.29257]
[1735554506853,0.29257,3424.0,3423.9,0.29257]
[1735554507462,0.29256,3424.1,3424.0,0.29255]
[1735554508056,3.50035,3424.2,3424.1,0.29255]
[1735554508762,3.2078,3424.2,3424.1,0.29255]
[1735554509061,0.29254,3424.3,3424.2,0.29254]
[1735554509862,0.29255,3424.2,3424.1,0.29255]
[1735554510164,0.29256,3424.1,3424.0,0.29256]
[1735554510362,0.29257,3424.0,3423.9,0.29257]
[1735554513858,4.57159661,3424.3,3423.8,2.33416153]
[1735554514058,4.57159661,3424.3,3424.2,0.29255]
[1735554514366,4.86413661,3424.3,3424.2,0.29255]
[1735554514670,4.57159661,3424.3,3424.2,0.29255]
[1735554515061,0.29255,3424.2,3424.0,0.29256]
[1735554515257,0.4275,3424.4,3423.8,2.33416153]
[1735554515462,0.72003,3424.4,3424.3,0.29254]
[1735554515965,0.29254,3424.3,3424.2,0.29254]
[1735554517362,0.43892295,3424.3,3423.8,9.22009743]
[1735554517660,0.29255,3424.2,3424.1,0.29255]
[1735554518063,0.43892295,3424.3,3423.8,9.22009743]
[1735554518263,0.73146295,3424.3,3424.2,0.29255]
[1735554518470,0.73146295,3424.3,3424.2,2.62671153]
[1735554518471,4.57159661,3424.3,3424.2,2.62671153]
[1735554518868,4.57159661,3424.3,3424.2,3.52391153]
[1735554519772,0.4358,3424.4,3424.3,0.29254]
[1735554520773,0.87469128,3424.4,3424.3,0.29254]
[1735554522665,0.43889128,3424.4,3424.3,0.29254]
[1735554524071,0.43889128,3424.6,3424.5,0.29252]
[1735554524273,0.43889128,3424.6,3424.5,3.50032]
[1735554525476,4.99079661,3424.8,3424.5,3.2078]
[1735554525668,4.99079661,3424.8,3424.7,0.2925]
[1735554526883,0.85806265,3424.8,3424.7,0.2925]
[1735554527282,0.43886265,3424.8,3424.7,0.2925]
[1735554528591,3.88712695,3424.9,3424.8,0.29249]
[1735554529990,3.4482643,3424.9,3424.8,0.29249]
[1735554531294,4.3115101,3425.0,3424.5,6.70096153]
[1735554531593,4.3115101,3425.0,3424.9,0.29249]
[1735554533591,3.8726643,3425.0,3424.9,0.29249]
[1735554537896,4.1651443,3425.0,3424.9,0.29249]
[1735554539098,4.1651443,3425.0,3424.7,0.2925]
[1735554539099,0.2925,3424.8,3424.7,0.2925]
[1735554540100,0.4191,3424.9,3424.6,1.159]
[1735554540397,0.71159,3424.9,3424.8,0.29249]
[1735554541101,4.1598543,3424.9,3424.8,0.29249]
[1735554541804,3.8673643,3424.9,3424.8,0.29249]
[1735554542104,4.30622223,3424.9,3424.8,0.29249]
[1735554544700,0.4191,3424.9,3424.4,4.59299489]
[1735554545200,0.4191,3424.9,3424.5,0.29252]
[1735554545401,0.29251,3424.6,3424.5,0.29252]
[1735554546106,0.29251,3424.6,3424.5,1.31757285]
[1735554546302,0.447,3424.6,3424.5,0.29252]
[1735554547202,3.4482643,3424.7,3424.6,0.29251]
[1735554548409,0.4349,3424.9,3424.5,0.4436]
[1735554548603,0.4349,3424.9,3424.8,0.29249]
[1735554549310,4.32201735,3424.9,3424.8,0.29249]
[1735554550508,0.87375305,3424.9,3424.8,0.29249]
[1735554552012,0.4349,3424.9,3424.8,0.29249]
[1735554553513,3.88164232,3424.9,3424.8,0.29249]
[1735554554716,0.87375675,3424.9,3424.8,0.29249]
[1735554555708,0.4349,3424.9,3424.8,0.29249]
[1735554556011,0.4349,3424.9,3424.4,3.2078]
[1735554556210,0.29252,3424.6,3424.5,0.29251]
[1735554556409,0.4349,3424.9,3424.6,0.29251]
[1735554556410,0.29251,3424.7,3424.6,0.29251]
[1735554556809,0.4349,3424.9,3424.4,4.3668]
[1735554557014,0.29252,3424.6,3424.5,0.29251]
[1735554557913,3.44764137,3424.7,3424.4,3.2078]
[1735554557914,0.29252,3424.5,3424.4,3.2078]
[1735554558114,0.29252,3424.5,3424.2,0.29254]
[1735554558415,0.29254,3424.3,3424.2,0.29254]
[1735554558817,0.29255,3424.2,3424.1,4.88554489]
[1735554559411,0.29255,3424.2,3424.1,4.59299489]
[1735554559611,0.29255,3424.1,3424.0,8.09335489]
[1735554560416,0.29255,3424.2,3424.1,0.29255]
[1735554561317,4.57159661,3424.3,3424.2,0.29255]
[1735554561522,4.86413661,3424.3,3424.2,0.29255]
[1735554562424,4.18074826,3424.3,3424.2,0.29255]
[1735554564222,3.88820826,3424.3,3424.2,0.29255]
[1735554564422,4.18074826,3424.3,3424.2,0.29255]
[1735554564823,0.29255,3424.2,3424.1,0.29255]
[1735554565725,0.43893193,3424.3,3424.0,3.2078]
[1735554566022,0.73147193,3424.3,3424.2,0.29255]
[1735554566718,0.908,3424.4,3424.3,0.29254]
[1735554566923,0.4552,3424.4,3424.3,0.29254]
[1735554567417,4.57159661,3424.5,3424.3,0.29254]
[1735554567623,4.57159661,3424.5,3424.4,0.74513]
[1735554567923,4.57159661,3424.5,3424.4,1.18503]
[1735554568124,4.57159661,3424.6,3424.4,4.1003]
[1735554568325,4.57159661,3424.6,3424.5,0.29252]
[1735554569725,0.4455,3424.7,3424.6,0.29251]